[Event "Titled Tuesday Blitz June 27 Early 2023"]
[White "Vargas, Mauricio"]
[Black "campochess"]
[WhiteFideId "4404572"]
[WhiteElo "1846"]
[BlackElo "2170"]
[Result "0-1"]
[Round "8"]
[TimeControl "180+2"]
[Date "2023.06.27"]
[WhiteClock "0:01:11"]
[BlackClock "0:02:26"]
[Board "155"]

1. e4 {[%clk 0:02:42]}  c5 {[%clk 0:02:59]} 2. Nf3 {[%clk 0:02:39]}  Nc6 {[%clk 0:02:59]} 3. d4 {[%clk 0:02:39]}  cxd4 {[%clk 0:02:59]} 4. Nxd4 {[%clk 0:02:37]}  e5 {[%clk 0:02:59]} 5. Nf3 {[%clk 0:02:35]}  Bc5 {[%clk 0:02:58]} 6. Nc3 {[%clk 0:02:34]}  a6 {[%clk 0:02:56]} 7. Bc4 {[%clk 0:02:32]}  Nf6 {[%clk 0:02:56]} 8. O-O {[%clk 0:02:30]}  O-O {[%clk 0:02:55]} 9. Bg5 {[%clk 0:02:28]}  Be7 {[%clk 0:02:45]} 10. Qe1 {[%clk 0:02:06]}  d6 {[%clk 0:02:44]} 11. Nd5 {[%clk 0:01:58]}  Nxd5 {[%clk 0:02:31]} 12. Bxd5 {[%clk 0:01:57]}  Bxg5 {[%clk 0:02:29]} 13. Nxg5 {[%clk 0:01:30]}  Qxg5 {[%clk 0:02:28]} 14. f4 {[%clk 0:01:11]}  exf4 {[%clk 0:02:26]} 0-1


[Site "https://www.chess.com"]

[Event "Titled Tuesday Blitz June 27 Early 2023"]
[White "Guevara Sanchez, Erick Marvin"]
[Black "Tarnowska, Aleksandra"]
[WhiteFideId "6700136"]
[BlackFideId "1180967"]
[WhiteElo "1996"]
[BlackElo "2154"]
[Result "0-1"]
[Round "8"]
[TimeControl "180+2"]
[Date "2023.06.27"]
[WhiteClock "0:00:22"]
[BlackClock "0:00:09"]
[Board "157"]

1. e4 {[%clk 0:03:00]}  c5 {[%clk 0:02:58]} 2. Nf3 {[%clk 0:02:59]}  e6 {[%clk 0:02:58]} 3. d4 {[%clk 0:02:59]}  cxd4 {[%clk 0:02:59]} 4. Nxd4 {[%clk 0:02:59]}  a6 {[%clk 0:02:57]} 5. Bd3 {[%clk 0:02:51]}  Bc5 {[%clk 0:02:56]} 6. Nb3 {[%clk 0:02:50]}  Be7 {[%clk 0:02:55]} 7. c4 {[%clk 0:02:46]}  Qc7 {[%clk 0:02:50]} 8. Nc3 {[%clk 0:02:45]}  d6 {[%clk 0:02:47]} 9. O-O {[%clk 0:02:43]}  Nf6 {[%clk 0:02:47]} 10. Be3 {[%clk 0:02:40]}  Nbd7 {[%clk 0:02:41]} 11. f4 {[%clk 0:02:36]}  g6 {[%clk 0:02:06]} 12. Nd4 {[%clk 0:02:26]}  Nc5 {[%clk 0:01:42]} 13. Rc1 {[%clk 0:02:15]}  h5 {[%clk 0:01:29]} 14. b4 {[%clk 0:02:08]}  Nxd3 {[%clk 0:01:27]} 15. Qxd3 {[%clk 0:02:09]}  Bd7 {[%clk 0:01:25]} 16. a4 {[%clk 0:01:58]}  Ng4 {[%clk 0:01:21]} 17. Bd2 {[%clk 0:01:54]}  Rc8 {[%clk 0:01:14]} 18. h3 {[%clk 0:01:52]}  Nf6 {[%clk 0:01:06]} 19. Nce2 {[%clk 0:01:50]}  Qb8 {[%clk 0:01:02]} 20. Be3 {[%clk 0:01:46]}  Bxa4 {[%clk 0:01:01]} 21. Nf3 {[%clk 0:01:40]}  Bc6 {[%clk 0:00:53]} 22. e5 {[%clk 0:01:38]}  Bxf3 {[%clk 0:00:48]} 23. Rxf3 {[%clk 0:01:38]}  dxe5 {[%clk 0:00:49]} 24. fxe5 {[%clk 0:01:34]}  Qxe5 {[%clk 0:00:50]} 25. Bd4 {[%clk 0:01:34]}  Qd6 {[%clk 0:00:42]} 26. c5 {[%clk 0:01:31]}  Qd7 {[%clk 0:00:40]} 27. Qc3 {[%clk 0:01:28]}  Nd5 {[%clk 0:00:35]} 28. Qc4 {[%clk 0:01:22]}  Rh7 {[%clk 0:00:30]} 29. Rd1 {[%clk 0:01:17]}  Qb5 {[%clk 0:00:27]} 30. Qc2 {[%clk 0:01:11]}  Nxb4 {[%clk 0:00:23]} 31. Qe4 {[%clk 0:01:06]}  Qc6 {[%clk 0:00:21]} 32. Qe5 {[%clk 0:01:05]}  Nc2 {[%clk 0:00:15]} 33. Bc3 {[%clk 0:00:59]}  Qxc5+ {[%clk 0:00:14]} 34. Qxc5 {[%clk 0:00:58]}  Rxc5 {[%clk 0:00:13]} 35. Kh1 {[%clk 0:00:56]}  Na3 {[%clk 0:00:10]} 36. Bb4 {[%clk 0:00:56]}  Rc2 {[%clk 0:00:09]} 37. Nd4 {[%clk 0:00:52]}  Rc4 {[%clk 0:00:08]} 38. Bxa3 {[%clk 0:00:50]}  Bxa3 {[%clk 0:00:07]} 39. Rxa3 {[%clk 0:00:51]}  Ke7 {[%clk 0:00:07]} 40. Rad3 {[%clk 0:00:50]}  Rh8 {[%clk 0:00:07]} 41. Nf3 {[%clk 0:00:50]}  Rhc8 {[%clk 0:00:08]} 42. Rd7+ {[%clk 0:00:48]}  Kf6 {[%clk 0:00:08]} 43. Rxb7 {[%clk 0:00:48]}  R8c7 {[%clk 0:00:08]} 44. Rb6 {[%clk 0:00:46]}  R7c6 {[%clk 0:00:08]} 45. Rb8 {[%clk 0:00:45]}  a5 {[%clk 0:00:08]} 46. Ra8 {[%clk 0:00:44]}  a4 {[%clk 0:00:08]} 47. Ra1 {[%clk 0:00:43]}  Rb6 {[%clk 0:00:06]} 48. R8xa4 {[%clk 0:00:41]}  Rc2 {[%clk 0:00:06]} 49. Ne1 {[%clk 0:00:39]}  Re2 {[%clk 0:00:06]} 50. R4a2 {[%clk 0:00:38]}  Rbb2 {[%clk 0:00:05]} 51. Rxb2 {[%clk 0:00:38]}  Rxb2 {[%clk 0:00:06]} 52. Nf3 {[%clk 0:00:38]}  g5 {[%clk 0:00:05]} 53. Kg1 {[%clk 0:00:37]}  g4 {[%clk 0:00:05]} 54. hxg4 {[%clk 0:00:36]}  hxg4 {[%clk 0:00:06]} 55. Nd4 {[%clk 0:00:36]}  Kg5 {[%clk 0:00:06]} 56. Rf1 {[%clk 0:00:34]}  Rd2 {[%clk 0:00:03]} 57. Nb3 {[%clk 0:00:31]}  Rd3 {[%clk 0:00:04]} 58. Nc1 {[%clk 0:00:31]}  Rd7 {[%clk 0:00:03]} 59. Ne2 {[%clk 0:00:30]}  f5 {[%clk 0:00:04]} 60. Nf4 {[%clk 0:00:30]}  e5 {[%clk 0:00:04]} 61. Ne6+ {[%clk 0:00:29]}  Kf6 {[%clk 0:00:05]} 62. Nf8 {[%clk 0:00:29]}  Rf7 {[%clk 0:00:05]} 63. Kf2 {[%clk 0:00:24]}  Rxf8 {[%clk 0:00:05]} 64. Rh1 {[%clk 0:00:25]}  Rg8 {[%clk 0:00:05]} 65. Rh6+ {[%clk 0:00:25]}  Rg6 {[%clk 0:00:06]} 66. Rh8 {[%clk 0:00:25]}  Kg5 {[%clk 0:00:06]} 67. Re8 {[%clk 0:00:25]}  e4 {[%clk 0:00:07]} 68. g3 {[%clk 0:00:25]}  Kf6 {[%clk 0:00:06]} 69. Rf8+ {[%clk 0:00:24]}  Kg7 {[%clk 0:00:06]} 70. Rxf5 {[%clk 0:00:22]}  Rf6 {[%clk 0:00:06]} 71. Rxf6 {[%clk 0:00:21]}  Kxf6 {[%clk 0:00:07]} 72. Ke2 {[%clk 0:00:21]}  Ke6 {[%clk 0:00:07]} 73. Kd2 {[%clk 0:00:21]}  Kd5 {[%clk 0:00:07]} 74. Ke2 {[%clk 0:00:19]}  Kd4 {[%clk 0:00:07]} 75. Kd2 {[%clk 0:00:20]}  e3+ {[%clk 0:00:07]} 76. Ke2 {[%clk 0:00:21]}  Ke4 {[%clk 0:00:08]} 77. Kf1 {[%clk 0:00:20]}  Kf3 {[%clk 0:00:08]} 78. Kg1 {[%clk 0:00:21]}  Kxg3 {[%clk 0:00:09]} 79. Kh1 {[%clk 0:00:21]}  e2 {[%clk 0:00:08]} 80. Kg1 {[%clk 0:00:22]}  e1=Q# {[%clk 0:00:09]} 0-1


[Site "https://www.chess.com"]

[Event "Titled Tuesday Blitz June 27 Early 2023"]
[White "Winkels, Marcel"]
[Black "Castillo Pena, Patricia Evarista"]
[WhiteFideId "1003887"]
[BlackFideId "6412106"]
[WhiteElo "2110"]
[BlackElo "1902"]
[Result "1-0"]
[Round "8"]
[TimeControl "180+2"]
[Date "2023.06.27"]
[WhiteClock "0:00:46"]
[BlackClock "0:00:56"]
[Board "159"]

1. e4 {[%clk 0:03:00]}  c5 {[%clk 0:02:59]} 2. Nf3 {[%clk 0:02:59]}  d6 {[%clk 0:02:59]} 3. Bb5+ {[%clk 0:02:57]}  Bd7 {[%clk 0:02:55]} 4. c4 {[%clk 0:02:56]}  a6 {[%clk 0:02:55]} 5. Bxd7+ {[%clk 0:02:45]}  Qxd7 {[%clk 0:02:55]} 6. Nc3 {[%clk 0:02:46]}  Nf6 {[%clk 0:02:55]} 7. O-O {[%clk 0:02:44]}  e6 {[%clk 0:02:49]} 8. d4 {[%clk 0:02:39]}  cxd4 {[%clk 0:02:49]} 9. Nxd4 {[%clk 0:02:40]}  Nc6 {[%clk 0:02:49]} 10. h3 {[%clk 0:02:38]}  Be7 {[%clk 0:02:48]} 11. Be3 {[%clk 0:02:36]}  O-O {[%clk 0:02:48]} 12. f4 {[%clk 0:02:35]}  Rac8 {[%clk 0:02:45]} 13. b3 {[%clk 0:02:29]}  b5 {[%clk 0:02:33]} 14. cxb5 {[%clk 0:02:19]}  Nxd4 {[%clk 0:02:31]} 15. Bxd4 {[%clk 0:02:19]}  e5 {[%clk 0:02:30]} 16. fxe5 {[%clk 0:02:18]}  dxe5 {[%clk 0:02:30]} 17. Bxe5 {[%clk 0:02:17]}  Qxd1 {[%clk 0:02:17]} 18. Raxd1 {[%clk 0:02:08]}  axb5 {[%clk 0:02:11]} 19. Bxf6 {[%clk 0:02:06]}  Bxf6 {[%clk 0:02:10]} 20. Nxb5 {[%clk 0:02:07]}  Rb8 {[%clk 0:02:04]} 21. a4 {[%clk 0:02:06]}  Rfe8 {[%clk 0:02:00]} 22. Rfe1 {[%clk 0:01:57]}  Bh4 {[%clk 0:01:59]} 23. Re2 {[%clk 0:01:56]}  h6 {[%clk 0:01:58]} 24. Rd4 {[%clk 0:01:33]}  Bg3 {[%clk 0:01:51]} 25. Rd3 {[%clk 0:01:30]}  Be5 {[%clk 0:01:45]} 26. Rc2 {[%clk 0:01:20]}  Red8 {[%clk 0:01:41]} 27. Rxd8+ {[%clk 0:01:19]}  Rxd8 {[%clk 0:01:41]} 28. a5 {[%clk 0:01:14]}  Bg3 {[%clk 0:01:40]} 29. Rc1 {[%clk 0:01:06]}  Ra8 {[%clk 0:01:29]} 30. b4 {[%clk 0:01:03]}  Bf4 {[%clk 0:01:28]} 31. Rb1 {[%clk 0:01:01]}  Be3+ {[%clk 0:01:26]} 32. Kf1 {[%clk 0:01:00]}  Rb8 {[%clk 0:01:23]} 33. Nc7 {[%clk 0:00:58]}  Bd2 {[%clk 0:01:20]} 34. a6 {[%clk 0:00:54]}  Be3 {[%clk 0:01:11]} 35. b5 {[%clk 0:00:50]}  Bb6 {[%clk 0:01:09]} 36. Nd5 {[%clk 0:00:49]}  Ba7 {[%clk 0:01:07]} 37. b6 {[%clk 0:00:48]}  Kf8 {[%clk 0:00:56]} 38. bxa7 {[%clk 0:00:46]} 1-0


[Site "https://www.chess.com"]

[Event "Titled Tuesday Blitz June 27 Early 2023"]
[White "Tosic, Srecko"]
[Black "Politov, Pavel Y."]
[WhiteFideId "924563"]
[BlackFideId "24110515"]
[WhiteElo "2307"]
[BlackElo "2085"]
[Result "1-0"]
[Round "8"]
[TimeControl "180+2"]
[Date "2023.06.27"]
[WhiteClock "0:00:42"]
[BlackClock "0:00:09"]
[Board "161"]

1. e3 {[%clk 0:02:57]}  d5 {[%clk 0:02:58]} 2. d4 {[%clk 0:02:56]}  Nf6 {[%clk 0:02:57]} 3. Bd3 {[%clk 0:02:56]}  c5 {[%clk 0:02:53]} 4. c3 {[%clk 0:02:55]}  Nc6 {[%clk 0:02:52]} 5. Nf3 {[%clk 0:02:55]}  e6 {[%clk 0:02:52]} 6. O-O {[%clk 0:02:54]}  Bd6 {[%clk 0:02:50]} 7. Nbd2 {[%clk 0:02:52]}  O-O {[%clk 0:02:49]} 8. Re1 {[%clk 0:02:51]}  Bd7 {[%clk 0:02:45]} 9. dxc5 {[%clk 0:02:51]}  Bxc5 {[%clk 0:02:45]} 10. e4 {[%clk 0:02:52]}  dxe4 {[%clk 0:02:34]} 11. Nxe4 {[%clk 0:02:53]}  Nxe4 {[%clk 0:02:31]} 12. Bxe4 {[%clk 0:02:53]}  Be7 {[%clk 0:02:18]} 13. Bf4 {[%clk 0:02:43]}  f6 {[%clk 0:01:42]} 14. Qc2 {[%clk 0:02:28]}  f5 {[%clk 0:01:29]} 15. Bd3 {[%clk 0:02:27]}  Rc8 {[%clk 0:01:14]} 16. Bc4 {[%clk 0:02:12]}  Rf6 {[%clk 0:00:59]} 17. Rad1 {[%clk 0:02:10]}  Qe8 {[%clk 0:00:52]} 18. Bg5 {[%clk 0:01:47]}  Rg6 {[%clk 0:00:48]} 19. Bxe7 {[%clk 0:01:48]}  Nxe7 {[%clk 0:00:41]} 20. Ne5 {[%clk 0:01:42]}  Rh6 {[%clk 0:00:15]} 21. Rxd7 {[%clk 0:01:29]}  Rxc4 {[%clk 0:00:14]} 22. Rxe7 {[%clk 0:01:24]}  Qxe7 {[%clk 0:00:14]} 23. Nxc4 {[%clk 0:01:24]}  Qh4 {[%clk 0:00:14]} 24. Qd3 {[%clk 0:00:52]}  Qxh2+ {[%clk 0:00:13]} 25. Kf1 {[%clk 0:00:53]}  Qh1+ {[%clk 0:00:13]} 26. Ke2 {[%clk 0:00:53]}  Qh5+ {[%clk 0:00:12]} 27. Kd2 {[%clk 0:00:50]}  Qg5+ {[%clk 0:00:12]} 28. Kc2 {[%clk 0:00:45]}  Rf6 {[%clk 0:00:10]} 29. Qd8+ {[%clk 0:00:41]}  Kf7 {[%clk 0:00:09]} 30. Ne5# {[%clk 0:00:42]} 1-0


[Site "https://www.chess.com"]

[Event "Titled Tuesday Blitz June 27 Early 2023"]
[White "Hakobyan, Aram"]
[Black "Andreikin, Dmitry"]
[WhiteFideId "13306677"]
[BlackFideId "4158814"]
[WhiteElo "3009"]
[BlackElo "3015"]
[Result "1/2-1/2"]
[Round "9"]
[TimeControl "180+2"]
[Date "2023.06.27"]
[WhiteClock "0:00:04"]
[BlackClock "0:00:22"]
[Board "1"]

1. d4 {[%clk 0:03:00]}  Nf6 {[%clk 0:03:00]} 2. c4 {[%clk 0:03:01]}  e6 {[%clk 0:03:00]} 3. Nc3 {[%clk 0:03:02]}  d5 {[%clk 0:02:58]} 4. Nf3 {[%clk 0:03:01]}  a6 {[%clk 0:02:58]} 5. cxd5 {[%clk 0:03:01]}  exd5 {[%clk 0:02:58]} 6. Bg5 {[%clk 0:03:02]}  Be6 {[%clk 0:02:58]} 7. e3 {[%clk 0:03:03]}  Nbd7 {[%clk 0:02:59]} 8. Bd3 {[%clk 0:03:04]}  h6 {[%clk 0:02:58]} 9. Bh4 {[%clk 0:03:02]}  Bd6 {[%clk 0:02:57]} 10. O-O {[%clk 0:02:57]}  O-O {[%clk 0:02:57]} 11. Rc1 {[%clk 0:02:51]}  c6 {[%clk 0:02:56]} 12. Nd2 {[%clk 0:02:40]}  Re8 {[%clk 0:02:36]} 13. h3 {[%clk 0:02:25]}  Qc7 {[%clk 0:02:32]} 14. f4 {[%clk 0:02:24]}  Bxh3 {[%clk 0:02:31]} 15. gxh3 {[%clk 0:02:19]}  Rxe3 {[%clk 0:02:31]} 16. Nf3 {[%clk 0:02:14]}  Bxf4 {[%clk 0:02:30]} 17. Rc2 {[%clk 0:02:05]}  Rae8 {[%clk 0:02:23]} 18. Rg2 {[%clk 0:02:00]}  Ne4 {[%clk 0:02:18]} 19. Qc2 {[%clk 0:01:35]}  Ndf6 {[%clk 0:01:59]} 20. Nd1 {[%clk 0:01:32]}  Nh5 {[%clk 0:01:57]} 21. Nxe3 {[%clk 0:01:24]}  Bxe3+ {[%clk 0:01:57]} 22. Kh1 {[%clk 0:01:24]}  Nhg3+ {[%clk 0:01:52]} 23. Bxg3 {[%clk 0:01:23]}  Nxg3+ {[%clk 0:01:52]} 24. Rxg3 {[%clk 0:01:24]}  Qxg3 {[%clk 0:01:53]} 25. Qg2 {[%clk 0:01:18]}  Bf4 {[%clk 0:01:43]} 26. Qxg3 {[%clk 0:01:09]}  Bxg3 {[%clk 0:01:44]} 27. Kg2 {[%clk 0:01:09]}  Bc7 {[%clk 0:01:40]} 28. Re1 {[%clk 0:00:51]}  Rxe1 {[%clk 0:01:36]} 29. Nxe1 {[%clk 0:00:52]}  g6 {[%clk 0:01:36]} 30. Kf2 {[%clk 0:00:43]}  Kg7 {[%clk 0:01:36]} 31. Be2 {[%clk 0:00:43]}  f5 {[%clk 0:01:20]} 32. Nd3 {[%clk 0:00:42]}  Bd6 {[%clk 0:01:17]} 33. b4 {[%clk 0:00:26]}  b6 {[%clk 0:01:03]} 34. a3 {[%clk 0:00:21]}  Kf6 {[%clk 0:00:53]} 35. Ne5 {[%clk 0:00:17]}  Bxe5 {[%clk 0:00:52]} 36. dxe5+ {[%clk 0:00:17]}  Kxe5 {[%clk 0:00:53]} 37. Bxa6 {[%clk 0:00:16]}  c5 {[%clk 0:00:53]} 38. bxc5 {[%clk 0:00:11]}  bxc5 {[%clk 0:00:54]} 39. a4 {[%clk 0:00:11]}  c4 {[%clk 0:00:50]} 40. a5 {[%clk 0:00:11]}  Kd4 {[%clk 0:00:43]} 41. Bb7 {[%clk 0:00:11]}  Kc5 {[%clk 0:00:39]} 42. a6 {[%clk 0:00:11]}  Kb6 {[%clk 0:00:39]} 43. Ke3 {[%clk 0:00:08]}  c3 {[%clk 0:00:39]} 44. Bxd5 {[%clk 0:00:03]}  Kxa6 {[%clk 0:00:37]} 45. Kd3 {[%clk 0:00:03]}  Kb6 {[%clk 0:00:34]} 46. Bf7 {[%clk 0:00:03]}  g5 {[%clk 0:00:32]} 47. Be6 {[%clk 0:00:02]}  g4 {[%clk 0:00:21]} 48. hxg4 {[%clk 0:00:02]}  fxg4 {[%clk 0:00:21]} 49. Bxg4 {[%clk 0:00:03]}  h5 {[%clk 0:00:21]} 50. Bxh5 {[%clk 0:00:03]}  c2 {[%clk 0:00:22]} 51. Kxc2 {[%clk 0:00:04]} 1/2-1/2


[Site "https://www.chess.com"]

[Event "Titled Tuesday Blitz June 27 Early 2023"]
[White "So, Wesley"]
[Black "Demchenko, Anton"]
[WhiteFideId "5202213"]
[BlackFideId "4160258"]
[WhiteElo "3105"]
[BlackElo "2940"]
[Result "1-0"]
[Round "9"]
[TimeControl "180+2"]
[Date "2023.06.27"]
[WhiteClock "0:00:14"]
[BlackClock "0:00:00"]
[Board "3"]

1. e4 {[%clk 0:02:45]}  e5 {[%clk 0:02:59]} 2. Nf3 {[%clk 0:02:44]}  Nc6 {[%clk 0:03:00]} 3. Bb5 {[%clk 0:02:43]}  a6 {[%clk 0:03:00]} 4. Ba4 {[%clk 0:02:42]}  Nge7 {[%clk 0:03:00]} 5. c3 {[%clk 0:02:37]}  Ng6 {[%clk 0:03:00]} 6. d4 {[%clk 0:02:35]}  exd4 {[%clk 0:03:01]} 7. cxd4 {[%clk 0:02:35]}  Bb4+ {[%clk 0:03:00]} 8. Bd2 {[%clk 0:02:32]}  O-O {[%clk 0:02:59]} 9. Bxb4 {[%clk 0:02:04]}  Nxb4 {[%clk 0:02:59]} 10. a3 {[%clk 0:01:58]}  Nc6 {[%clk 0:02:56]} 11. Nc3 {[%clk 0:01:58]}  d6 {[%clk 0:02:52]} 12. O-O {[%clk 0:01:45]}  b5 {[%clk 0:02:43]} 13. Bb3 {[%clk 0:01:43]}  Bg4 {[%clk 0:02:43]} 14. Kh1 {[%clk 0:01:32]}  Na5 {[%clk 0:01:56]} 15. Ba2 {[%clk 0:01:25]}  Nh4 {[%clk 0:01:55]} 16. Qd3 {[%clk 0:01:22]}  Bxf3 {[%clk 0:01:44]} 17. gxf3 {[%clk 0:01:23]}  Qf6 {[%clk 0:01:30]} 18. Rac1 {[%clk 0:01:19]}  c6 {[%clk 0:01:12]} 19. Ne2 {[%clk 0:01:05]}  Qxf3+ {[%clk 0:00:52]} 20. Qxf3 {[%clk 0:01:03]}  Nxf3 {[%clk 0:00:53]} 21. Kg2 {[%clk 0:00:55]}  Nd2 {[%clk 0:00:51]} 22. Rfd1 {[%clk 0:00:52]}  Nxe4 {[%clk 0:00:52]} 23. b4 {[%clk 0:00:51]}  Nc4 {[%clk 0:00:51]} 24. Bxc4 {[%clk 0:00:52]}  bxc4 {[%clk 0:00:51]} 25. Rxc4 {[%clk 0:00:53]}  a5 {[%clk 0:00:45]} 26. d5 {[%clk 0:00:46]}  cxd5 {[%clk 0:00:39]} 27. Rxd5 {[%clk 0:00:47]}  axb4 {[%clk 0:00:38]} 28. Rxe4 {[%clk 0:00:44]}  bxa3 {[%clk 0:00:39]} 29. Rd1 {[%clk 0:00:41]}  a2 {[%clk 0:00:37]} 30. Ra1 {[%clk 0:00:41]}  Ra6 {[%clk 0:00:38]} 31. Nc3 {[%clk 0:00:36]}  Rc6 {[%clk 0:00:21]} 32. Re3 {[%clk 0:00:33]}  g6 {[%clk 0:00:11]} 33. Rxa2 {[%clk 0:00:33]}  Kg7 {[%clk 0:00:11]} 34. Ra7 {[%clk 0:00:31]}  Rc5 {[%clk 0:00:08]} 35. Ne4 {[%clk 0:00:30]}  Re5 {[%clk 0:00:08]} 36. Nxd6 {[%clk 0:00:27]}  Rxe3 {[%clk 0:00:09]} 37. fxe3 {[%clk 0:00:27]}  Kf6 {[%clk 0:00:10]} 38. Kf3 {[%clk 0:00:27]}  h6 {[%clk 0:00:09]} 39. Ra6 {[%clk 0:00:25]}  Ke7 {[%clk 0:00:10]} 40. Nc4 {[%clk 0:00:25]}  Rb8 {[%clk 0:00:09]} 41. Ne5 {[%clk 0:00:23]}  Rb2 {[%clk 0:00:08]} 42. h3 {[%clk 0:00:19]}  Rh2 {[%clk 0:00:06]} 43. Kg3 {[%clk 0:00:17]}  Re2 {[%clk 0:00:07]} 44. Ra7+ {[%clk 0:00:14]}  Ke6 {[%clk 0:00:07]} 45. Nxf7 {[%clk 0:00:14]}  Rxe3+ {[%clk 0:00:06]} 46. Kg4 {[%clk 0:00:15]}  h5+ {[%clk 0:00:02]} 47. Kh4 {[%clk 0:00:15]}  Kf6 {[%clk 0:00:00]} 48. Ng5 {[%clk 0:00:14]} 1-0


[Site "https://www.chess.com"]

[Event "Titled Tuesday Blitz June 27 Early 2023"]
[White "Galchenko, Matvey"]
[Black "Narayanan.S.L"]
[WhiteFideId "24175480"]
[BlackFideId "5058422"]
[WhiteElo "2873"]
[BlackElo "2995"]
[Result "1-0"]
[Round "9"]
[TimeControl "180+2"]
[Date "2023.06.27"]
[WhiteClock "0:00:04"]
[BlackClock "0:01:05"]
[Board "5"]

1. e4 {[%clk 0:03:00]}  g6 {[%clk 0:02:58]} 2. d4 {[%clk 0:02:59]}  Bg7 {[%clk 0:02:58]} 3. Nc3 {[%clk 0:02:59]}  d6 {[%clk 0:02:57]} 4. Be2 {[%clk 0:02:57]}  Nc6 {[%clk 0:02:57]} 5. Be3 {[%clk 0:02:56]}  e5 {[%clk 0:02:55]} 6. dxe5 {[%clk 0:02:48]}  Nxe5 {[%clk 0:02:54]} 7. Qd2 {[%clk 0:02:33]}  Nf6 {[%clk 0:02:43]} 8. h3 {[%clk 0:02:26]}  O-O {[%clk 0:02:42]} 9. f4 {[%clk 0:02:23]}  Ned7 {[%clk 0:02:41]} 10. O-O-O {[%clk 0:02:14]}  Re8 {[%clk 0:02:37]} 11. Bf3 {[%clk 0:02:14]}  Rb8 {[%clk 0:02:29]} 12. Nge2 {[%clk 0:02:03]}  b5 {[%clk 0:02:28]} 13. e5 {[%clk 0:02:03]}  b4 {[%clk 0:02:27]} 14. Nb1 {[%clk 0:01:53]}  dxe5 {[%clk 0:02:26]} 15. fxe5 {[%clk 0:01:53]}  Rxe5 {[%clk 0:02:25]} 16. Bxa7 {[%clk 0:01:44]}  Rbb5 {[%clk 0:02:24]} 17. Bc6 {[%clk 0:01:40]}  Ra5 {[%clk 0:02:16]} 18. Bd4 {[%clk 0:01:40]}  Qf8 {[%clk 0:02:16]} 19. Qd3 {[%clk 0:01:00]}  Bh6+ {[%clk 0:02:14]} 20. Nd2 {[%clk 0:01:01]}  Rxa2 {[%clk 0:02:14]} 21. Kb1 {[%clk 0:01:00]}  Raa5 {[%clk 0:02:14]} 22. Bxd7 {[%clk 0:00:53]}  Bxd7 {[%clk 0:02:11]} 23. Nc4 {[%clk 0:00:53]}  Qa8 {[%clk 0:02:06]} 24. b3 {[%clk 0:00:42]}  Bf5 {[%clk 0:02:06]} 25. Bxe5 {[%clk 0:00:20]}  Bxd3 {[%clk 0:02:05]} 26. Rxd3 {[%clk 0:00:21]}  Nd5 {[%clk 0:02:02]} 27. Nxa5 {[%clk 0:00:17]}  Qxa5 {[%clk 0:02:02]} 28. Rhd1 {[%clk 0:00:17]}  c6 {[%clk 0:02:02]} 29. Nd4 {[%clk 0:00:10]}  Nc3+ {[%clk 0:01:53]} 30. Rxc3 {[%clk 0:00:10]}  Qxe5 {[%clk 0:01:54]} 31. Rxc6 {[%clk 0:00:08]}  Be3 {[%clk 0:01:52]} 32. Rc4 {[%clk 0:00:04]}  Kg7 {[%clk 0:01:51]} 33. Rxb4 {[%clk 0:00:04]}  Qh5 {[%clk 0:01:49]} 34. Nf3 {[%clk 0:00:03]}  Qa5 {[%clk 0:01:50]} 35. Ra4 {[%clk 0:00:03]}  Qc3 {[%clk 0:01:50]} 36. Rd3 {[%clk 0:00:03]}  Qc5 {[%clk 0:01:49]} 37. Rc4 {[%clk 0:00:04]}  Qa7 {[%clk 0:01:49]} 38. Re4 {[%clk 0:00:04]}  Bc5 {[%clk 0:01:48]} 39. Rc4 {[%clk 0:00:04]}  Be7 {[%clk 0:01:48]} 40. Kb2 {[%clk 0:00:03]}  Bf6+ {[%clk 0:01:48]} 41. c3 {[%clk 0:00:03]}  g5 {[%clk 0:01:45]} 42. Rd2 {[%clk 0:00:03]}  h5 {[%clk 0:01:46]} 43. Rc2 {[%clk 0:00:03]}  Qe3 {[%clk 0:01:46]} 44. Ra4 {[%clk 0:00:03]}  Qd3 {[%clk 0:01:39]} 45. Nd4 {[%clk 0:00:04]}  g4 {[%clk 0:01:37]} 46. hxg4 {[%clk 0:00:04]}  hxg4 {[%clk 0:01:38]} 47. Ne2 {[%clk 0:00:05]}  Qf5 {[%clk 0:01:33]} 48. Ng3 {[%clk 0:00:06]}  Qe6 {[%clk 0:01:31]} 49. Re4 {[%clk 0:00:05]}  Qc8 {[%clk 0:01:29]} 50. Nh5+ {[%clk 0:00:04]}  Kg6 {[%clk 0:01:30]} 51. Nxf6 {[%clk 0:00:05]}  Kxf6 {[%clk 0:01:31]} 52. Rf2+ {[%clk 0:00:05]}  Kg6 {[%clk 0:01:29]} 53. Ref4 {[%clk 0:00:06]}  g3 {[%clk 0:01:28]} 54. R2f3 {[%clk 0:00:05]}  Qe8 {[%clk 0:01:23]} 55. Rxg3+ {[%clk 0:00:05]}  Kh5 {[%clk 0:01:24]} 56. Rf2 {[%clk 0:00:02]}  Qe5 {[%clk 0:01:19]} 57. Rgf3 {[%clk 0:00:02]}  Kg4 {[%clk 0:01:17]} 58. Rxf7 {[%clk 0:00:02]}  Kg3 {[%clk 0:01:17]} 59. R7f3+ {[%clk 0:00:02]}  Kh2 {[%clk 0:01:17]} 60. g4+ {[%clk 0:00:02]}  Kg1 {[%clk 0:01:17]} 61. b4 {[%clk 0:00:03]}  Qd5 {[%clk 0:01:15]} 62. g5 {[%clk 0:00:02]}  Qxg5 {[%clk 0:01:14]} 63. Rc2 {[%clk 0:00:03]}  Qd5 {[%clk 0:01:12]} 64. Re3 {[%clk 0:00:03]}  Kf1 {[%clk 0:01:12]} 65. Ree2 {[%clk 0:00:04]}  Qd6 {[%clk 0:01:12]} 66. Rf2+ {[%clk 0:00:04]}  Kg1 {[%clk 0:01:05]} 67. Rfd2 {[%clk 0:00:04]} 1-0


[Site "https://www.chess.com"]

[Event "Titled Tuesday Blitz June 27 Early 2023"]
[White "Indjic, Aleksandar"]
[Black "Erdogmus, Yagiz Kaan"]
[WhiteFideId "911925"]
[BlackFideId "44599790"]
[WhiteElo "2961"]
[BlackElo "2872"]
[Result "1-0"]
[Round "9"]
[TimeControl "180+2"]
[Date "2023.06.27"]
[WhiteClock "0:01:56"]
[BlackClock "0:00:12"]
[Board "6"]

1. e4 {[%clk 0:03:00]}  c5 {[%clk 0:02:59]} 2. Nf3 {[%clk 0:03:00]}  d6 {[%clk 0:02:59]} 3. d4 {[%clk 0:03:01]}  cxd4 {[%clk 0:03:00]} 4. Nxd4 {[%clk 0:03:01]}  Nf6 {[%clk 0:03:00]} 5. Nc3 {[%clk 0:03:01]}  a6 {[%clk 0:03:01]} 6. h3 {[%clk 0:03:01]}  e5 {[%clk 0:03:00]} 7. Nf3 {[%clk 0:03:01]}  Be7 {[%clk 0:02:59]} 8. Nh2 {[%clk 0:02:54]}  Be6 {[%clk 0:02:41]} 9. Ng4 {[%clk 0:02:53]}  Nbd7 {[%clk 0:02:41]} 10. Ne3 {[%clk 0:02:51]}  Nb6 {[%clk 0:02:34]} 11. a4 {[%clk 0:02:50]}  d5 {[%clk 0:02:29]} 12. exd5 {[%clk 0:02:35]}  Nbxd5 {[%clk 0:02:28]} 13. Ncxd5 {[%clk 0:02:35]}  Nxd5 {[%clk 0:02:28]} 14. Nxd5 {[%clk 0:02:31]}  Qxd5 {[%clk 0:02:19]} 15. Qxd5 {[%clk 0:02:30]}  Bxd5 {[%clk 0:02:20]} 16. Be3 {[%clk 0:02:29]}  O-O {[%clk 0:01:53]} 17. f3 {[%clk 0:02:29]}  Bh4+ {[%clk 0:01:39]} 18. Bf2 {[%clk 0:02:29]}  Bxf2+ {[%clk 0:01:40]} 19. Kxf2 {[%clk 0:02:30]}  Rac8 {[%clk 0:01:40]} 20. c3 {[%clk 0:02:28]}  Rfd8 {[%clk 0:01:38]} 21. Be2 {[%clk 0:02:23]}  f6 {[%clk 0:01:23]} 22. Ke3 {[%clk 0:02:20]}  Kf7 {[%clk 0:01:23]} 23. Rhd1 {[%clk 0:02:17]}  Bb3 {[%clk 0:01:09]} 24. Rxd8 {[%clk 0:02:16]}  Rxd8 {[%clk 0:01:09]} 25. a5 {[%clk 0:02:16]}  f5 {[%clk 0:01:03]} 26. Bd3 {[%clk 0:02:15]}  Kf6 {[%clk 0:01:02]} 27. Ra3 {[%clk 0:02:12]}  Be6 {[%clk 0:00:35]} 28. c4 {[%clk 0:02:11]}  Rd4 {[%clk 0:00:34]} 29. Rb3 {[%clk 0:01:58]}  f4+ {[%clk 0:00:29]} 30. Ke2 {[%clk 0:01:57]}  Bxc4 {[%clk 0:00:20]} 31. Rb6+ {[%clk 0:01:57]}  Kg5 {[%clk 0:00:19]} 32. Bxc4 {[%clk 0:01:55]}  Rxc4 {[%clk 0:00:20]} 33. Rxb7 {[%clk 0:01:56]}  Rc2+ {[%clk 0:00:20]} 34. Kd3 {[%clk 0:01:56]}  Rxg2 {[%clk 0:00:12]} 35. Rxg7+ {[%clk 0:01:56]} 1-0


[Site "https://www.chess.com"]